bitfinex-derivatives/quotes_SOLF0:USTF0_20250212
["timestamp","ask_amount","ask_price","bid_price","bid_amount"]
[1739327788985,13.94058116,196.98,196.92,5.0787]
[1739327789494,5.0777,196.97,196.92,5.0787]
[1739327789895,3.0812,197.0,196.88,13.94058116]
[1739327790097,0.03441487,196.96,196.93,5.11138385]
[1739327791099,0.03441487,196.96,196.93,0.03278385]
[1739327792898,0.03441487,196.96,196.95,5.0782]
[1739327793798,0.03441487,196.96,196.93,0.03278385]
[1739327794298,0.03441487,196.96,196.93,5.11138385]
[1739327794900,0.03441487,196.96,196.95,5.0782]
[1739327795094,0.03441487,196.96,196.93,0.03278385]
[1739327795593,0.03441487,196.96,196.94,5.0784]
[1739327796600,5.11231487,196.96,196.93,0.03278385]
[1739327798000,0.03441487,196.96,196.93,0.03278385]
[1739327798901,0.03441487,196.96,196.93,5.11128385]
[1739327799104,0.03441487,196.96,196.93,0.03278385]
[1739327800699,0.03441487,196.96,196.93,5.11128385]
[1739327800900,0.03441487,196.96,196.93,0.03278385]
[1739327801501,5.11251487,196.96,196.93,0.03278385]
[1739327803197,0.03441487,196.96,196.93,0.03278385]
[1739327803499,0.03441487,196.96,196.93,5.11138385]
[1739327807199,0.03441487,196.96,196.95,5.0782]
[1739327807603,0.03441487,196.96,196.95,13.98739727]
[1739327808903,0.03441487,196.96,196.93,8.94198112]
[1739327809305,0.03441487,196.96,196.93,0.03278385]
[1739327809604,5.11251487,196.96,196.93,0.03278385]
[1739327809803,0.03441487,196.96,196.93,0.03278385]
[1739327810504,5.0782,196.95,196.93,0.03278385]
[1739327811505,0.03441487,196.96,196.93,0.03278385]
[1739327812807,0.03441487,196.96,196.94,5.0784]
[1739327813709,0.03441487,196.96,196.95,5.0782]
[1739327816413,3.0984,197.05,196.95,13.92733526]
[1739327816708,3.0984,197.05,196.98,13.92733526]
[1739327816905,1.4688,197.07,197.01,13.92733526]
[1739327817100,5.0749,197.08,197.03,5.0761]
[1739327817501,5.0749,197.08,197.04,0.03857958]
[1739327817701,0.03713284,197.07,197.04,5.11437958]
[1739327818005,0.03713284,197.07,197.04,0.03857958]
[1739327818209,0.03713284,197.07,197.05,5.0756]
[1739327819507,0.03713284,197.07,197.04,0.03857958]
[1739327819708,0.03713284,197.07,197.06,5.0753]
[1739327822714,0.03713284,197.07,197.04,13.96591484]
[1739327825711,0.03713284,197.07,197.04,0.03857958]
[1739327826216,0.03713284,197.07,197.04,5.11437958]
[1739327827108,0.03713284,197.07,197.04,0.03857958]
[1739327827813,5.0753,197.06,197.04,0.03857958]
[1739327828512,5.11223284,197.07,197.04,0.03857958]
[1739327828712,0.03713284,197.07,197.04,0.03857958]
[1739327829311,5.11223284,197.07,197.04,0.03857958]
[1739327830016,0.03713284,197.07,197.04,0.03857958]
[1739327830220,5.0753,197.06,197.04,0.03857958]
[1739327832120,0.03713284,197.07,197.04,0.03857958]
[1739327832417,5.11223284,197.07,197.04,0.03857958]
[1739327833010,0.03713284,197.07,197.04,0.03857958]
[1739327833210,0.03713284,197.07,197.05,5.0755]
[1739327833419,0.03713284,197.07,197.04,0.03857958]
[1739327834018,0.03713284,197.07,197.05,5.0756]
[1739327834620,0.03713284,197.07,197.04,0.03857958]
[1739327835119,0.03713284,197.07,197.05,5.0754]
[1739327835316,0.03713284,197.07,197.04,0.03857958]
[1739327835727,0.03713284,197.07,197.06,5.0753]
[1739327836126,0.03713284,197.07,197.04,0.03857958]
[1739327836728,0.03713284,197.07,197.06,5.0753]
[1739327837526,0.03713284,197.07,197.06,19.00263526]
[1739327841225,0.03713284,197.07,197.06,5.0753]
[1739327841727,0.03713284,197.07,197.04,5.11417958]
[1739327844330,5.11223284,197.07,197.04,5.11417958]
[1739327844631,5.11223284,197.07,197.04,0.03857958]
[1739327846033,0.03713284,197.07,197.04,0.03857958]
[1739327846232,5.0756,197.05,197.04,0.03857958]
[1739327846833,0.03713284,197.07,197.04,0.03857958]
[1739327847031,5.0753,197.06,197.04,0.03857958]
[1739327849932,5.11223284,197.07,197.04,0.03857958]
[1739327850935,0.03713284,197.07,197.04,8.942239]
[1739327851130,0.03713284,197.07,197.06,8.90365942]
[1739327851924,10.43385942,197.17,197.06,8.90365942]
[1739327852232,10.43385942,197.17,197.11,8.90365942]
[1739327852837,5.0731,197.15,197.11,13.97755942]
[1739327853229,5.10560679,197.15,197.11,14.01191576]
[1739327853732,5.10560679,197.15,197.11,5.10825634]
[1739327853929,0.03250679,197.15,197.11,0.03435634]
[1739327854131,0.03250679,197.15,197.12,5.0737]
[1739327854436,0.03250679,197.15,197.11,0.03435634]
[1739327855132,0.03250679,197.15,197.11,5.10835634]
[1739327856031,0.03250679,197.15,197.11,0.03435634]
[1739327856235,0.03250679,197.15,197.11,13.93338465]
[1739327856835,0.03250679,197.15,197.14,5.0733]
[1739327858439,0.03250679,197.15,197.12,5.0737]
[1739327858735,0.03250679,197.15,197.11,13.93338465]
[1739327859236,0.03250679,197.15,197.12,5.0736]
[1739327859437,0.03250679,197.15,197.11,13.93338465]
[1739327860036,0.03250679,197.15,197.13,5.0733]
[1739327862733,0.03250679,197.15,197.11,13.93338465]
[1739327863030,0.03250679,197.15,197.14,5.0733]
[1739327869842,0.03250679,197.15,197.14,18.97232831]
[1739327873745,0.03250679,197.15,197.14,13.96432835]
[1739327875645,10.45912835,197.25,197.19,5.0718]
[1739327876349,5.0713,197.22,197.19,5.0718]
[1739327876645,5.0713,197.22,197.19,5.11078734]
[1739327876646,0.03229128,197.22,197.19,5.11078734]
[1739327878341,5.0716,197.21,197.19,0.03898734]
[1739327878641,0.03229128,197.22,197.19,0.03898734]
[1739327879749,5.0717,197.21,197.19,0.03898734]
[1739327880644,0.03229128,197.22,197.19,0.03898734]
[1739327880844,5.0717,197.2,197.19,0.03898734]
[1739327881246,0.03229128,197.22,197.19,0.03898734]
[1739327881547,5.10359128,197.22,197.19,0.03898734]
[1739327882358,5.0717,197.21,197.19,0.03898734]
[1739327882549,0.03229128,197.22,197.19,0.03898734]
[1739327883745,5.0717,197.21,197.19,0.03898734]
[1739327884350,5.0717,197.2,197.19,0.03898734]
[1739327885247,5.10359128,197.22,197.19,0.03898734]
[1739327885446,0.03229128,197.22,197.19,0.03898734]
[1739327886149,5.10359128,197.22,197.19,0.03898734]
[1739327886747,0.03229128,197.22,197.19,0.03898734]
[1739327886944,5.0715,197.21,197.19,0.03898734]
[1739327887851,5.0717,197.2,197.19,0.03898734]
[1739327891649,5.0715,197.21,197.19,0.03898734]
[1739327893453,0.03229128,197.22,197.19,0.03898734]
[1739327893660,5.0717,197.2,197.19,0.03898734]
[1739327897559,8.89102835,197.21,197.08,8.89102835]
[1739327897763,8.89102835,197.14,197.08,8.89102835]
[1739327898260,5.0736,197.13,197.08,13.96562835]
[1739327898654,0.03552749,197.12,197.09,0.03654267]
[1739327899358,0.03552749,197.12,197.1,8.89102835]
[1739327899763,0.03552749,197.12,197.1,13.96502835]
[1739327901963,0.03552749,197.12,197.1,8.89102835]
[1739327905263,0.03552749,197.12,197.11,5.074]
[1739327905264,2.749e-05,197.12,197.11,5.074]
[1739327905468,8.89102835,197.24,197.11,8.89102835]
[1739327905765,8.89102835,197.24,197.19,8.89102835]
[1739327906269,5.0716,197.21,197.19,8.89102835]
[1739327906465,5.0716,197.21,197.2,0.03702449]
[1739327939194,5.10958834,197.23,197.2,0.03702449]
[1739327939397,0.03838834,197.23,197.2,0.03702449]
[1739327940497,5.0715,197.21,197.2,0.03702449]
[1739327953106,5.0733,197.14,197.11,8.89102835]
[1739327953908,5.0731,197.15,197.11,8.89102835]
[1739327954307,5.10609864,197.15,197.11,8.9270382]
[1739327955509,5.10609864,197.15,197.11,0.03600985]
[1739327957110,5.10609864,197.15,197.11,14.0008382]
[1739327957311,5.10609864,197.15,197.11,8.9270382]
[1739327958809,5.10609864,197.15,197.12,5.0737]
[1739327965712,0.03299864,197.15,197.12,5.0737]
[1739327965920,0.03299864,197.15,197.13,8.89102835]
[1739327966812,0.03299864,197.15,197.14,5.0733]
[1739327983330,8.89102835,197.25,197.13,8.89102835]
[1739327983630,8.89102835,197.25,197.18,8.89102835]
[1739327984026,5.071,197.23,197.18,13.96322835]
[1739327984633,0.03369877,197.22,197.19,0.03651975]
[1739327985330,0.03369877,197.22,197.19,5.10841975]
[1739327986733,5.10489877,197.22,197.19,5.10841975]
[1739327987733,5.10489877,197.22,197.19,0.03651975]
[1739327988232,5.0715,197.21,197.19,0.03651975]
[1739327988433,0.03369877,197.22,197.19,0.03651975]
[1739327988636,5.0717,197.21,197.19,0.03651975]
[1739328000837,5.0717,197.2,197.19,0.03651975]
[1739328010441,0.03369877,197.22,197.19,0.03651975]
[1739328010745,0.03369877,197.22,197.19,5.10851975]
[1739328011543,0.03369877,197.22,197.21,5.0715]
[1739328012142,148.6368503,197.31,197.2,8.89102835]
[1739328012143,5.0695,197.29,197.24,5.0705]
[1739328012338,8.89102835,197.31,197.2,8.89102835]
[1739328012339,201.38133006,197.32,197.26,8.89102835]
[1739328012544,201.38133006,197.32,197.28,8.89102835]
[1739328013542,201.42027977,197.32,197.28,8.92348715]
[1739328014746,61.67445782,197.32,197.28,8.92348715]
[1739328014949,0.03894971,197.32,197.28,8.92348715]
[1739328017751,0.03894971,197.32,197.28,13.99308715]
[1739328019356,0.03894971,197.32,197.28,8.92348715]
[1739328019546,0.03894971,197.32,197.29,5.0694]
[1739328020057,0.03894971,197.32,197.3,8.89102835]
[1739328020450,0.03894971,197.32,197.31,5.0689]
[1739328020752,8.89102835,197.41,197.3,8.89102835]
[1739328020945,8.89102835,197.41,197.35,8.89102835]
[1739328021251,5.0671,197.38,197.35,8.89102835]
[1739328021751,5.10150957,197.38,197.35,8.92706536]
[1739328022953,0.03440957,197.38,197.35,0.03603701]
[1739328023753,5.0676,197.36,197.35,0.03603701]
[1739328025757,5.0674,197.37,197.35,0.03603701]
[1739328026847,5.0676,197.36,197.35,0.03603701]
[1739328030061,5.0674,197.37,197.35,0.03603701]
[1739328031363,5.0674,197.37,197.35,8.92706536]
[1739328033564,0.03440957,197.38,197.35,8.92706536]
[1739328033764,0.03440957,197.38,197.37,8.89102835]
[1739328035055,5.10150957,197.38,197.37,8.89102835]
[1739328035260,5.10150957,197.38,197.35,8.92706536]
[1739328035762,5.0676,197.37,197.35,8.92706536]
[1739328035964,0.03440957,197.38,197.35,8.92706536]
[1739328036766,5.10150957,197.38,197.35,8.92706536]
[1739328037164,5.10150957,197.38,197.37,8.89102835]
[1739328037363,5.0676,197.36,197.35,8.92706536]
[1739328038466,0.03440957,197.38,197.35,8.92706536]
[1739328038666,5.10170957,197.38,197.35,8.92706536]
[1739328038869,0.03440957,197.38,197.37,8.89102835]
[1739328039071,5.0656,197.44,197.4,5.0665]
[1739328039258,5.0656,197.44,197.42,8.89102835]
[1739328040472,0.02310238,197.45,197.42,8.89102835]
[1739328040772,5.0658,197.43,197.42,8.89102835]
[1739328041970,0.02310238,197.45,197.41,0.0370196]
[1739328042170,5.0661,197.42,197.41,0.0370196]
[1739328044770,8.91413073,197.45,197.41,0.0370196]
[1739328044967,0.02310238,197.45,197.42,8.89102835]
[1739328045167,0.02310238,197.45,197.44,8.89102835]
[1739328047771,8.89102835,197.58,197.44,8.89102835]
[1739328047966,8.89102835,197.58,197.52,8.89102835]
[1739328048272,5.0632,197.54,197.52,8.89102835]
[1739328048971,5.0632,197.53,197.52,8.89102835]
[1739328051169,8.89102835,197.56,197.51,0.03891663]
[1739328051370,5.0635,197.52,197.51,0.03891663]
[1739328056383,13.95452835,197.52,197.51,0.03891663]
[1739328057177,5.0635,197.52,197.51,0.03891663]
[1739328057773,5.063,197.55,197.51,0.03891663]
[1739328057972,5.063,197.55,197.52,8.89102835]
[1739328058181,8.89102835,197.58,197.52,8.89102835]
[1739328059081,5.0632,197.54,197.52,8.89102835]
[1739328060184,5.0632,197.53,197.51,0.03891663]
[1739328060786,8.89102835,197.58,197.51,0.03891663]
[1739328060984,5.0635,197.52,197.51,0.03891663]
[1739328062386,5.0629,197.55,197.51,0.03891663]
[1739328062581,8.89102835,197.56,197.51,0.03891663]
[1739328063289,5.0632,197.54,197.51,0.03891663]
[1739328064178,8.89102835,197.56,197.51,0.03891663]
[1739328064681,5.0632,197.54,197.51,0.03891663]
[1739328065181,8.89102835,197.56,197.51,0.03891663]
[1739328065386,5.0635,197.53,197.51,0.03891663]
[1739328065586,8.89102835,197.56,197.51,0.03891663]
[1739328065787,5.0635,197.52,197.51,0.03891663]
[1739328069490,13.95452835,197.52,197.51,0.03891663]
[1739328069691,5.0648,197.47,197.44,8.89102835]
[1739328070395,8.89102835,197.52,197.46,8.89102835]
[1739328070994,0.03431915,197.51,197.47,0.03752887]
[1739328071294,5.0645,197.48,197.47,0.03752887]
[1739328072198,8.89102835,197.48,197.4,8.89102835]
[1739328072495,8.89102835,197.45,197.38,8.89102835]
[1739328073196,8.89102835,197.45,197.4,8.89102835]
[1739328073397,0.03341426,197.43,197.4,8.92989893]
[1739328073892,5.09921426,197.43,197.4,8.92989893]
[1739328074095,0.03341426,197.43,197.4,8.92989893]
[1739328074392,0.03341426,197.43,197.42,8.89102835]
[1739328075503,0.03341426,197.43,197.42,13.95712835]
[1739328076598,0.03341426,197.43,197.42,8.89102835]
[1739328076799,0.03341426,197.43,197.4,8.92989893]
[1739328077000,5.09941426,197.43,197.4,8.92989893]
[1739328078500,5.0663,197.41,197.4,8.92989893]
[1739328079097,5.0661,197.42,197.4,8.92989893]
[1739328080396,5.0663,197.41,197.4,0.03887058]
[1739328080895,0.03341426,197.43,197.4,0.03887058]
[1739328081095,5.0661,197.42,197.4,0.03887058]
[1739328081804,5.0661,197.42,197.4,8.92989893]
[1739328082106,0.03341426,197.43,197.4,8.92989893]
[1739328082305,5.0663,197.41,197.4,8.92989893]
[1739328083902,5.0663,197.41,197.4,0.03887058]
[1739328084811,13.95732835,197.41,197.4,0.03887058]
[1739328098118,13.95732835,197.41,197.4,7.058e-05]
[1739328098318,5.0683,197.34,197.3,8.89102835]
[1739328098518,8.89102835,197.36,197.3,8.89102835]
[1739328099021,5.0682,197.34,197.3,13.96012835]
[1739328099518,5.10491394,197.34,197.3,13.99443255]
[1739328101321,5.0689,197.31,197.3,0.0343042]
[1739328104821,5.0707,197.25,197.2,13.96252835]
[1739328105021,8.89102835,197.25,197.2,8.89102835]
[1739328105726,5.0712,197.23,197.2,8.89102835]
[1739328105922,5.0712,197.23,197.21,0.03561334]
[1739328106226,5.0712,197.22,197.21,0.03561334]
[1739328111732,5.0723,197.18,197.12,8.89102835]
[1739328111935,13.96332835,197.18,197.12,8.89102835]
[1739328112334,13.96332835,197.18,197.13,5.0733]
[1739328112835,0.03551687,197.17,197.14,5.10831601]
[1739328114236,0.03551687,197.17,197.16,5.0728]
[1739328114435,0.03551687,197.17,197.16,13.96382835]
[1739328118632,0.03551687,197.17,197.16,5.0728]
[1739328118838,0.03551687,197.17,197.14,8.92614436]
[1739328119037,0.03551687,197.17,197.15,5.073]
[1739328120343,0.03551687,197.17,197.16,5.0728]
[1739328120937,0.03551687,197.17,197.14,5.10831601]
[1739328121841,0.03551687,197.17,197.14,0.03511601]
[1739328122142,0.03551687,197.17,197.16,5.0728]
[1739328125335,0.03551687,197.17,197.16,13.96382835]
[1739328125941,0.03551687,197.17,197.14,13.99914436]
[1739328126143,0.03551687,197.17,197.14,8.92614436]
[1739328126641,0.03551687,197.17,197.16,5.0728]
[1739328127345,0.03551687,197.17,197.15,5.073]
[1739328127647,0.03551687,197.17,197.14,8.92614436]
[1739328128149,0.03551687,197.17,197.16,13.96382835]
[1739328131247,0.03551687,197.17,197.16,5.0728]
[1739328134249,0.03551687,197.17,197.14,8.92614436]
[1739328134543,0.03551687,197.17,197.14,0.03511601]
[1739328135346,5.10821687,197.17,197.14,0.03511601]
[1739328135547,0.03551687,197.17,197.14,8.92614436]
[1739328136750,0.03551687,197.17,197.16,5.0728]
[1739328137051,0.03551687,197.17,197.16,13.96382835]
[1739328155767,0.03551687,197.17,197.14,0.03511601]
[1739328156269,0.03551687,197.17,197.15,5.0729]
[1739328159372,0.03551687,197.17,197.14,0.03511601]
[1739328160775,0.03551687,197.17,197.15,5.073]
[1739328160974,0.03551687,197.17,197.14,0.03511601]
[1739328161273,0.03551687,197.17,197.14,5.10831601]
[1739328163869,0.03551687,197.17,197.15,5.0729]
[1739328166775,0.03551687,197.17,197.15,5.073]
[1739328167275,0.03551687,197.17,197.14,5.10831601]
[1739328167676,0.03551687,197.17,197.14,0.03511601]
[1739328167877,5.10821687,197.17,197.14,5.10831601]
[1739328170377,5.0728,197.16,197.14,0.03511601]
[1739328171974,0.03551687,197.17,197.14,0.03511601]
[1739328172172,5.10811687,197.17,197.14,0.03511601]
[1739328174277,0.03551687,197.17,197.14,0.03511601]
[1739328174478,0.03551687,197.17,197.14,8.92614436]
[1739328174876,0.03551687,197.17,197.14,13.99934436]
[1739328176078,0.03551687,197.17,197.14,5.10831601]
[1739328180883,5.10801687,197.17,197.14,5.10831601]
[1739328183587,0.03551687,197.17,197.14,5.10831601]
[1739328184785,5.10801687,197.17,197.14,5.10831601]
[1739328185085,0.03551687,197.17,197.15,5.0729]
[1739328188086,5.10811687,197.17,197.14,5.10831601]
[1739328188384,5.10811687,197.17,197.14,0.03511601]
[1739328195286,5.0728,197.16,197.14,0.03511601]
[1739328196094,8.89102835,197.16,197.14,0.03511601]
[1739328196290,8.89102835,197.16,197.05,3.0891]
[1739328196495,8.89102835,197.11,197.04,46.02800616]
[1739328197192,8.89102835,197.11,197.05,5.0755]
[1739328197598,8.89102835,197.09,197.06,0.03690397]
[1739328197894,8.89102835,197.07,197.02,29.93855844]
[1739328198095,8.89102835,197.07,197.06,0.03614031]
[1739328198890,13.96612835,197.07,197.06,0.03614031]
[1739328199793,8.92817628,197.09,197.06,0.03614031]
[1739328200001,0.03714793,197.09,197.06,0.03614031]
[1739328200695,8.92817628,197.09,197.06,0.03614031]
[1739328201399,5.0749,197.08,197.06,0.03614031]
[1739328201594,8.92817628,197.09,197.06,0.03614031]
[1739328201799,5.0748,197.08,197.06,0.03614031]
[1739328202500,5.0751,197.07,197.06,0.03614031]
[1739328202693,13.96612835,197.07,197.06,0.03614031]
[1739328204401,8.92817628,197.09,197.06,0.03614031]
[1739328205400,5.0748,197.08,197.06,0.03614031]
[1739328205706,8.92817628,197.09,197.06,0.03614031]
[1739328206001,14.00277628,197.09,197.06,0.03614031]
[1739328206703,5.0748,197.08,197.06,0.03614031]
[1739328207601,0.03714793,197.09,197.07,5.0749]
[1739328208303,0.03714793,197.09,197.06,0.03614031]
[1739328208501,8.92817628,197.09,197.06,0.03614031]
[1739328209200,5.075,197.08,197.06,0.03614031]
[1739328209402,8.89102835,197.07,197.06,0.03614031]
[1739328209596,13.96612835,197.07,197.06,0.03614031]
[1739328211904,8.89102835,197.07,197.06,0.03614031]
[1739328213703,13.96612835,197.07,197.06,0.03614031]
[1739328231630,8.89102835,197.07,196.96,11.86592835]
[1739328231831,8.89102835,197.02,196.96,11.86592835]
[1739328232725,0.03504431,197.01,196.97,0.03863736]
[1739328233131,0.03504431,197.01,196.98,5.0772]
[1739328233432,0.03504431,197.01,196.97,0.03863736]
[1739328234630,0.03504431,197.01,196.97,5.11603736]
[1739328235731,5.11174431,197.01,196.97,5.11603736]
[1739328236134,0.03504431,197.01,196.97,5.11603736]
[1739328236628,0.03504431,197.01,196.97,0.03863736]
[1739328236830,13.96792835,197.0,196.97,0.03863736]
[1739328238134,13.96792835,197.0,196.97,5.11623736]
[1739328238535,8.89102835,197.0,196.97,5.11623736]
[1739328238836,0.03504431,197.01,196.97,8.92966571]
[1739328240133,0.03504431,197.01,197.0,5.0769]
[1739328240838,0.03504431,197.01,196.99,5.0771]
[1739328241433,0.03504431,197.01,196.97,0.03863736]
[1739328241634,0.03504431,197.01,196.97,5.11623736]
[1739328241929,0.03504431,197.01,196.97,0.03863736]
[1739328242131,0.03504431,197.01,196.98,5.0774]
[1739328242437,0.03504431,197.01,196.97,0.03863736]
[1739328242634,0.03504431,197.01,196.98,5.0774]
[1739328243242,0.03504431,197.01,197.0,5.0769]
[1739328247133,8.89102835,197.1,197.05,5.0755]
[1739328247334,8.89102835,197.1,197.03,8.89102835]
[1739328247742,8.89102835,197.08,197.03,8.89102835]
[1739328248145,0.03217341,197.07,197.04,0.0364922]
[1739328249140,0.03217341,197.07,197.04,5.1122922]
[1739328249437,0.03217341,197.07,197.05,8.89102835]
[1739328249642,0.03217341,197.07,197.06,5.0753]
[1739328249838,8.89102835,197.14,197.06,5.0753]
[1739328250140,8.89102835,197.14,197.07,8.89102835]
[1739328250342,8.89102835,197.12,197.07,8.89102835]
[1739328250647,8.89102835,197.1,197.05,10.48062835]
[1739328251146,8.89102835,197.08,197.06,0.03206539]
[1739328251345,8.89102835,197.08,197.03,8.89102835]
[1739328251640,8.89102835,197.08,197.05,0.03319554]
[1739328252247,5.0753,197.06,197.05,0.03319554]
[1739328253044,5.0751,197.07,197.05,0.03319554]
[1739328254249,13.96632835,197.06,197.05,0.03319554]
[1739328262859,5.0767,197.01,196.97,5.0776]
[1739328263048,13.96772835,197.01,196.97,5.0776]
[1739328263248,8.89102835,197.01,196.97,5.0776]
[1739328264059,8.92926826,197.01,196.97,5.111909]
[1739328264757,8.92926826,197.01,196.98,5.0774]
[1739328267651,0.03823991,197.01,196.97,0.034309]
[1739328268057,0.03823991,197.01,196.99,5.077]
[1739328269559,0.03823991,197.01,196.98,5.0773]
[1739328269759,0.03823991,197.01,196.97,0.034309]
[1739328270559,8.92926826,197.01,196.97,0.034309]
[1739328270760,14.00606826,197.01,196.97,5.111909]
[1739328271259,5.0769,197.0,196.97,5.111909]
[1739328271460,8.92926826,197.01,196.97,5.111909]
[1739328271759,14.00586826,197.01,196.98,5.0774]
[1739328273163,8.92926826,197.01,196.98,5.0774]
[1739328274363,14.00586826,197.01,196.98,5.0774]
[1739328275462,8.92926826,197.01,196.97,0.034309]
[1739328275659,5.0769,197.0,196.97,5.111909]
[1739328276264,14.00596826,197.01,196.97,5.111909]
[1739328276664,14.00596826,197.01,196.97,0.034309]
[1739328276866,14.00596826,197.01,196.98,5.0773]
[1739328277867,0.03823991,197.01,196.97,8.92533735]
[1739328278467,0.03823991,197.01,196.98,5.0771]
[1739328279367,0.03823991,197.01,196.99,5.0771]
[1739328280360,0.03823991,197.01,196.97,8.92533735]
[1739328280565,0.03823991,197.01,196.98,5.0773]
[1739328282768,5.11483991,197.01,196.98,5.0773]
[1739328283271,0.03823991,197.01,196.98,5.0773]
[1739328293081,5.11483991,197.01,196.97,14.00293735]
[1739328294377,0.03823991,197.01,196.97,0.034309]
[1739328294582,8.92926826,197.01,196.97,0.034309]
[1739328296383,0.03823991,197.01,196.97,0.034309]
[1739328296583,0.03823991,197.01,196.98,5.0774]
[1739328298489,0.03823991,197.01,196.97,5.111909]
[1739328298490,5.11493991,197.01,196.97,5.111909]
[1739328299386,5.0771,197.0,196.97,0.034309]
[1739328299588,0.03823991,197.01,196.99,8.89102835]
[1739328299987,0.03823991,197.01,196.97,8.92533735]
[1739328301089,5.11493991,197.01,196.97,8.92533735]
[1739328301387,5.11493991,197.01,196.97,14.00293735]
[1739328302088,0.03823991,197.01,196.99,5.077]
[1739328302786,0.03823991,197.01,196.97,8.92533735]
[1739328302980,0.03823991,197.01,196.97,14.00293735]
[1739328303185,0.03823991,197.01,196.97,5.111909]
[1739328303586,5.11503991,197.01,196.97,5.111909]
[1739328303788,8.92926826,197.01,196.97,0.034309]
[1739328304089,8.89102835,196.99,196.97,0.034309]
[1739328304290,5.0774,196.98,196.97,0.034309]
[1739328305993,8.92926826,197.01,196.97,0.034309]
[1739328306286,0.03823991,197.01,196.97,8.92533735]
[1739328306783,0.03823991,197.01,196.97,14.00273735]
[1739328307184,0.03823991,197.01,196.99,8.89102835]
[1739328308393,0.03823991,197.01,197.0,5.0769]
[1739328309292,0.03823991,197.01,196.99,13.96812835]
[1739328314793,0.03823991,197.01,197.0,5.0769]
[1739328316197,0.03823991,197.01,196.99,8.89102835]
[1739328316996,0.03823991,197.01,196.99,13.96802835]
[1739328317493,0.03823991,197.01,196.99,8.89102835]
[1739328318797,0.03823991,197.01,197.0,5.0769]
[1739328319798,0.03823991,197.01,196.99,13.96812835]
[1739328320899,0.03823991,197.01,196.99,8.89102835]
[1739328321100,0.03823991,197.01,197.0,5.0769]
[1739328322499,11.97592835,197.13,197.06,5.0753]
[1739328322699,11.97592835,197.13,197.06,8.89102835]
[1739328322895,5.0749,197.08,197.02,8.89102835]
[1739328323090,8.89102835,197.09,197.03,5.0759]
[1739328323597,5.0754,197.06,197.04,0.03636538]
[1739328323798,8.89102835,197.05,197.04,0.03636538]
[1739328324603,13.96662835,197.05,197.04,0.03636538]
[1739328324793,8.89102835,197.05,197.04,0.03636538]
[1739328324998,8.89102835,197.07,197.04,0.03636538]
[1739328325503,0.03266322,197.08,197.04,0.03636538]
[1739328326204,0.03266322,197.08,197.04,8.92739373]
[1739328326406,5.10746322,197.08,197.04,8.92739373]
[1739328326700,5.10746322,197.08,197.04,0.03636538]
[1739328326906,0.03266322,197.08,197.04,0.03636538]
[1739328327108,8.89102835,197.07,197.04,0.03636538]
[1739328327405,8.89102835,197.05,197.04,0.03636538]
[1739328327603,8.89102835,197.03,196.98,8.89102835]
[1739328327806,5.0766,197.02,196.98,8.89102835]
[1739328328007,8.89102835,197.03,196.96,8.89102835]
[1739328328507,8.89102835,197.01,196.96,8.89102835]
[1739328328697,8.92372816,197.01,196.98,0.0361661]
[1739328329805,5.0769,197.0,196.98,0.0361661]
[1739328331002,13.96812835,196.99,196.98,0.0361661]
[1739328338509,5.0771,196.99,196.98,0.0361661]
[1739328338811,0.03269981,197.01,196.98,0.0361661]
[1739328339610,5.10959981,197.01,196.98,0.0361661]
[1739328339914,0.03269981,197.01,196.98,0.0361661]
[1739328340211,5.0769,197.0,196.98,0.0361661]
[1739328340709,0.03269981,197.01,196.98,0.0361661]
[1739328340909,5.10939981,197.01,196.98,0.0361661]
[1739328341413,0.03269981,197.01,196.99,5.0769]
[1739328341714,0.03269981,197.01,197.0,8.89102835]
[1739328342215,0.03269981,197.01,197.0,13.96792835]
[1739328342715,5.0748,197.09,197.04,5.0757]
[1739328342915,5.0748,197.09,197.05,8.89102835]
[1739328343215,8.89102835,197.11,197.05,8.89102835]
[1739328343415,5.0748,197.08,197.05,8.89102835]
[1739328343814,5.10754404,197.08,197.05,8.92815686]
[1739328347620,0.03274404,197.08,197.05,14.00355686]
[1739328348417,0.03274404,197.08,197.05,8.92815686]
[1739328348620,0.03274404,197.08,197.05,0.03712851]
[1739328349427,13.96632835,197.07,197.05,0.03712851]
[1739328350323,0.03274404,197.08,197.05,0.03712851]
[1739328350619,5.10764404,197.08,197.05,0.03712851]
[1739328351520,5.0752,197.07,197.05,0.03712851]
[1739328352324,0.03274404,197.08,197.05,0.03712851]
[1739328352524,5.0753,197.06,197.05,0.03712851]
[1739328354519,5.0751,197.07,197.05,0.03712851]
[1739328356224,5.0753,197.06,197.05,0.03712851]
[1739328356728,8.89102835,197.07,196.98,5.0773]
[1739328356932,5.0766,197.02,196.97,8.89102835]
[1739328357225,8.89102835,197.03,196.97,8.89102835]
[1739328357923,5.0769,197.01,196.98,0.03623196]
[1739328358920,0.03703964,197.02,196.98,0.03623196]